fUSD/lending_fUSD_20240606
["ID","MTS","AMOUNT","RATE_DAILY","PERIOD"]
[328663724,1717684235772,-500.0,0.0002767,4]
[328663725,1717684235785,-500.0,0.0002767,4]
[328663726,1717684235795,-1334.22,0.0002767,4]
[328663727,1717684235805,-500.0,0.0002767,4]
[328663728,1717684235816,-500.0,0.0002767,4]
[328663729,1717684235825,-1021.38,0.0002767,4]
[328663730,1717684235835,-3029.84,0.0002767,4]
[328663731,1717684235844,-549.91230365,0.0002767,4]
[328663732,1717684235856,-500.0,0.0002767,4]
[328663733,1717684235866,-500.0,0.0002767,4]
[328663734,1717684235875,-439.70064471,0.0002767,4]
[328663735,1717684236295,-1626.00935529,0.0002767,4]
[328663736,1717684236305,-500.0,0.0002767,4]
[328663737,1717684236316,-500.0,0.0002767,4]
[328663738,1717684236326,-561.11,0.0002767,4]
[328663739,1717684236336,-500.0,0.0002767,4]
[328663740,1717684236345,-500.0,0.0002767,4]
[328663741,1717684236355,-500.0,0.0002767,4]
[328663742,1717684236365,-284.95740127,0.0002767,4]
[328663743,1717684236377,-215.04259873,0.0002767,4]
[328663744,1717684236388,-500.0,0.0002767,4]
[328663745,1717684236397,-417.15496709,0.0002767,4]
[328663746,1717684236409,-872.81,0.0002767,4]
[328663747,1717684236449,-1249.28503291,0.0002767,4]
[328663748,1717684236460,-831.61,0.0002767,4]
[328663749,1717684236469,-859.07,0.0002767,4]
[328663750,1717684236479,-500.0,0.0002767,4]
[328663751,1717684236488,-500.0,0.0002767,4]
[328663752,1717684236499,-227.93496709,0.0002767,4]
[328663753,1717684236567,-272.06503291,0.0002767,4]
[328663754,1717684236592,-816.38,0.0002767,4]
[328663755,1717684236621,-500.0,0.0002767,4]
[328663756,1717684236661,-500.0,0.0002767,4]
[328663757,1717684236689,-1242.44,0.0002767,4]
[328663758,1717684236699,-1933.46,0.0002767,4]
[328663759,1717684236708,-968.99,0.0002767,4]
[328663760,1717684236718,-500.0,0.0002767,4]
[328663761,1717684236728,-391.28576709,0.0002767,4]
[328663762,1717684236740,-169.69423291,0.0002767,4]
[328663763,1717684236750,-500.0,0.0002767,4]
[328663764,1717684236760,-813.21,0.0002767,4]
[328663765,1717684236779,-500.0,0.0002767,4]
[328663766,1717684236789,-500.0,0.0002767,4]
[328663767,1717684236799,-500.0,0.0002767,4]
[328663768,1717684236810,-500.0,0.0002767,4]
[328663769,1717684236820,-500.0,0.0002767,4]
[328663770,1717684236831,-563.87,0.0002767,4]
[328663771,1717684236842,-516.57,0.0002767,4]
[328663772,1717684236852,-648.12,0.0002767,4]
[328663773,1717684236865,-500.0,0.0002767,4]
[328663774,1717684236876,-500.0,0.0002767,4]
[328663775,1717684236886,-500.0,0.0002767,4]
[328663776,1717684236896,-500.0,0.0002767,4]
[328663777,1717684236907,-500.0,0.0002767,4]
[328663778,1717684236917,-1267.63,0.0002767,4]
[328663779,1717684236927,-500.0,0.0002767,4]
[328663780,1717684236938,-500.0,0.0002767,4]
[328663781,1717684236948,-512.84,0.0002767,4]
[328663782,1717684236959,-1896.79,0.0002767,4]
[328663783,1717684236969,-1555.0,0.0002767,4]
[328663784,1717684236979,-500.0,0.0002767,4]
[328663785,1717684236989,-824.64,0.0002767,4]
[328663786,1717684237000,-638.6,0.0002767,4]
[328663787,1717684237010,-1759.69,0.0002767,4]
[328663788,1717684237019,-500.0,0.0002767,4]
[328663789,1717684237029,-500.0,0.0002767,4]
[328663790,1717684237040,-500.0,0.0002767,4]
[328663791,1717684237049,-500.0,0.0002767,4]
[328663792,1717684237059,-500.0,0.0002767,4]
[328663793,1717684237070,-2463.73,0.0002767,4]
[328663794,1717684237080,-634.91,0.0002767,4]
[328663795,1717684237090,-500.0,0.0002767,4]
[328663796,1717684237100,-921.39,0.0002767,4]
[328663797,1717684237112,-500.0,0.0002767,4]
[328663798,1717684237122,-2196.78,0.0002767,4]
[328663799,1717684237132,-5905.36,0.0002767,4]
[328663800,1717684237142,-500.0,0.0002767,4]
[328663801,1717684237152,-644.25,0.0002767,4]
[328663802,1717684237162,-500.0,0.0002767,4]
[328663803,1717684237171,-1735.83,0.0002767,4]
[328663804,1717684237181,-500.0,0.0002767,4]
[328663805,1717684237191,-500.0,0.00027671,4]
[328663806,1717684237200,-500.0,0.00027671,4]
[328663807,1717684237211,-500.0,0.00027671,4]
[328663808,1717684237220,-500.0,0.00027671,4]
[328663809,1717684237230,-500.0,0.00027671,4]
[328663810,1717684237240,-500.0,0.00027671,4]
[328663811,1717684237250,-170.02212913,0.00027671,4]
[328663812,1717684237259,-500.0,0.00027671,4]
[328663813,1717684237269,-500.0,0.00027671,4]
[328663814,1717684237279,-500.0,0.00027671,2]
[328663815,1717684237288,-500.0,0.00027671,4]
[328663816,1717684237298,-500.0,0.00027671,4]
[328663817,1717684237307,-500.0,0.00027671,4]
[328663818,1717684237318,-320.10525813,0.00027671,4]
[328663819,1717684237328,-500.0,0.00027671,4]
[328663820,1717684237337,-500.0,0.00027671,4]
[328663821,1717684237347,-500.0,0.00027671,4]
[328663822,1717684237358,-533.56673259,0.00027671,4]
[328663823,1717684237367,-500.0,0.00027671,4]
[328663824,1717684237377,-500.0,0.00027671,4]
[328663825,1717684237386,-601.79,0.00027671,4]
[328663826,1717684237396,-500.0,0.00027671,4]
[328663827,1717684237406,-500.0,0.00027671,4]
[328663828,1717684237416,-500.0,0.00027671,4]
[328663829,1717684237426,-500.0,0.00027671,4]
[328663830,1717684237435,-500.0,0.00027671,4]
[328663831,1717684237445,-500.0,0.00027671,4]
[328663832,1717684237456,-421.51822805,0.00027671,4]
[328663833,1717684237466,-616.99,0.00027671,4]
[328663834,1717684237476,-500.0,0.00027671,4]
[328663835,1717684237486,-500.0,0.00027671,4]
[328663836,1717684237496,-500.0,0.00027671,4]
[328663837,1717684237506,-500.0,0.00027671,4]
[328663838,1717684237516,-500.0,0.00027671,4]
[328663839,1717684237525,-500.0,0.00027671,4]
[328663840,1717684237536,-1651.72,0.00027671,4]
[328663841,1717684237546,-500.0,0.00027671,4]
[328663842,1717684237556,-500.0,0.00027671,4]
[328663843,1717684237566,-500.0,0.00027671,4]
[328663844,1717684237576,-500.0,0.00027671,4]
[328663845,1717684237588,-500.0,0.00027671,4]
[328663846,1717684237598,-500.0,0.00027671,4]
[328663847,1717684237608,-500.0,0.00027671,4]
[328663848,1717684237618,-500.0,0.00027671,4]
[328663849,1717684237627,-500.0,0.00027671,4]
[328663850,1717684237636,-500.0,0.00027671,4]
[328663851,1717684237647,-500.0,0.00027671,4]
[328663852,1717684237657,-500.0,0.00027671,4]
[328663853,1717684237667,-500.0,0.00027671,4]
[328663854,1717684237676,-500.0,0.00027671,4]
[328663855,1717684237686,-500.0,0.00027671,4]
[328663856,1717684237696,-500.0,0.00027671,4]
[328663857,1717684237706,-500.0,0.00027671,4]
[328663858,1717684237716,-729.48,0.00027671,4]
[328663859,1717684237726,-500.0,0.00027671,4]
[328663860,1717684237735,-500.0,0.00027671,4]
[328663861,1717684237745,-510.78,0.00027671,4]
[328663862,1717684237754,-500.0,0.00027671,4]
[328663863,1717684237764,-500.0,0.00027671,4]
[328663864,1717684237774,-500.0,0.00027671,4]
[328663865,1717684237788,-500.0,0.00027671,4]
[328663866,1717684237798,-500.0,0.00027671,4]
[328663867,1717684237808,-500.0,0.00027671,4]
[328663868,1717684237818,-500.0,0.00027671,4]
[328663869,1717684237828,-500.0,0.00027671,4]
[328663870,1717684237837,-500.0,0.00027671,4]
[328663871,1717684237847,-524.89,0.00027671,4]
[328663872,1717684237858,-500.0,0.00027671,4]
[328663873,1717684237868,-500.0,0.00027671,4]
[328663874,1717684237878,-500.0,0.00027671,4]
[328663875,1717684237888,-500.0,0.00027671,4]
[328663876,1717684237898,-500.0,0.00027671,4]
[328663877,1717684237907,-570.74,0.00027671,4]
[328663878,1717684237917,-500.0,0.00027671,4]
[328663879,1717684237927,-265.18752884,0.00027671,4]
[328663880,1717684237936,-500.0,0.00027671,4]
[328663881,1717684237947,-500.0,0.00027671,4]
[328663882,1717684237957,-500.0,0.00027671,4]
[328663883,1717684237966,-3454.23,0.00027671,4]
[328663884,1717684237976,-500.0,0.00027671,4]
[328663885,1717684237987,-500.0,0.00027671,4]
[328663886,1717684237997,-500.0,0.00027671,4]
[328663887,1717684238007,-500.0,0.00027671,4]
[328663888,1717684238017,-2264.76,0.00027671,4]
[328663889,1717684238027,-500.0,0.00027671,4]
[328663890,1717684238036,-500.0,0.00027671,4]
[328663891,1717684238046,-536.19,0.00027671,4]
[328663892,1717684238056,-500.0,0.00027671,4]
[328663893,1717684238067,-500.0,0.00027671,4]
[328663894,1717684238076,-500.0,0.00027671,4]
[328663895,1717684238086,-500.0,0.00027671,4]
[328663897,1717684238096,-500.0,0.00027671,4]
[328663898,1717684238106,-500.0,0.00027671,4]
[328663899,1717684238115,-600.36152763,0.00027671,4]
[328663900,1717684238125,-500.0,0.00027671,4]
[328663901,1717684238136,-500.0,0.00027671,4]
[328663902,1717684238146,-500.0,0.00027671,4]
[328663903,1717684238156,-743.79,0.00027671,4]
[328663904,1717684238166,-500.0,0.00027671,4]
[328663905,1717684238176,-150.0,0.00027752,2]
[328663906,1717684238186,-156.35946452,0.00027844,2]
[328663907,1717684238196,-200.37,0.0002794,2]
[328663908,1717684238206,-500.0,0.00027943,4]
[328663909,1717684238216,-1166.68,0.00027943,4]
[328663910,1717684238226,-500.0,0.00027943,4]
[328663911,1717684238235,-2844.45,0.00027943,4]
[328663912,1717684238245,-1098.52,0.00027943,4]
[328663913,1717684238255,-612.87,0.00027943,4]
[328663914,1717684238264,-500.0,0.00027943,4]
[328663915,1717684238275,-1728.88,0.00027943,4]
[328663916,1717684238285,-500.0,0.00027943,4]
[328663917,1717684238295,-1045.12,0.00027943,4]
[328663918,1717684238305,-500.0,0.00027943,4]
[328663919,1717684238316,-500.0,0.00027943,4]
[328663920,1717684238326,-1033.11,0.00027943,4]
[328663921,1717684238336,-500.0,0.00027943,4]
[328663922,1717684238346,-500.0,0.00027943,4]
[328663923,1717684238357,-500.0,0.00027944,4]
[328663924,1717684238368,-500.0,0.00027944,4]
[328663925,1717684238380,-233.99092613,0.00027944,4]
[328663927,1717684238389,-500.0,0.00027944,2]
[328663929,1717684238400,-500.0,0.00027944,4]
[328663932,1717684238415,-500.0,0.00027944,4]
[328663934,1717684238426,-500.0,0.00027944,4]
[328663937,1717684238436,-500.0,0.00027944,4]
[328663939,1717684238446,-72.81831013,0.00027944,4]
[328663942,1717684238461,-427.18168987,0.00027944,4]
[328663956,1717684238751,-500.0,0.00027944,4]
[328663957,1717684238776,-500.0,0.00027944,4]
[328663958,1717684238787,-500.0,0.00027944,4]
[328663959,1717684238796,-500.0,0.00027944,4]
[328663960,1717684238807,-500.0,0.00027944,4]
[328663961,1717684238817,-500.0,0.00027944,4]
[328663962,1717684238827,-500.0,0.00027944,4]
[328663963,1717684238837,-516.62800356,0.00027944,4]
[328663964,1717684238850,-192.63256689,0.00027944,4]
[328663965,1717684239688,-1936.75042707,0.00022179,2]
[328663966,1717684239699,-247.69426516,0.00027571,2]
[328663967,1717684239709,-1930.20400759,0.0002767,4]
[328663968,1717684239736,-5217.92599241,0.0002767,4]
[328663969,1717684239746,-4907.89,0.00027677,2]
[328663970,1717684239755,-307.36743311,0.00027944,4]
[328663971,1717684239766,-418.13382216,0.00027944,4]
[328663972,1717684239778,-500.0,0.00027944,4]
[328663973,1717684239791,-500.0,0.00027944,4]
[328663974,1717684239801,-500.0,0.00027944,4]
[328663975,1717684239812,-360.98542077,0.00027944,4]
[328663976,1717684239823,-500.0,0.00027944,4]
[328663977,1717684239834,-500.0,0.00027944,4]
[328663978,1717684239844,-500.0,0.00027944,4]
[328663979,1717684239855,-500.0,0.00027944,4]
[328663980,1717684239866,-500.0,0.00027944,4]
[328663981,1717684239877,-500.0,0.00027944,4]
[328663982,1717684239888,-275.95531972,0.00027944,4]
[328663983,1717684239898,-764.67,0.00027944,4]
[328663984,1717684239909,-500.0,0.00027944,4]
[328663985,1717684239919,-500.0,0.00027944,4]
[328663986,1717684239930,-1245.47,0.00027944,4]
[328663987,1717684239941,-500.0,0.00027944,4]
[328663988,1717684239952,-1038.02,0.00027944,4]
[328663989,1717684239963,-297.56851401,0.00027944,4]
[328663990,1717684239975,-500.0,0.00027944,4]
[328663991,1717684239986,-667.4,0.00027944,4]
[328663992,1717684239997,-553.94,0.00027944,4]
[328663993,1717684240008,-500.0,0.00027944,4]
[328663994,1717684240018,-500.0,0.00027944,4]
[328663995,1717684240029,-500.0,0.00027944,4]
[328663996,1717684240039,-500.0,0.00027944,4]
[328663997,1717684240050,-750.72,0.00027944,4]
[328663998,1717684240060,-500.0,0.00027944,4]
[328663999,1717684240071,-500.0,0.00027944,4]
[328664000,1717684240081,-500.0,0.00027944,4]
[328664001,1717684240091,-897.88,0.00027944,4]
[328664002,1717684240101,-753.39,0.00027944,4]
[328664003,1717684240112,-701.96,0.00027944,4]
[328664004,1717684240122,-430.20185185,0.00027944,4]
[328664005,1717684240132,-500.0,0.00027944,4]
[328664006,1717684240142,-500.0,0.00027944,4]
[328664007,1717684240152,-598.24,0.00027944,4]
[328664008,1717684240162,-500.0,0.00027944,4]
[328664009,1717684240172,-500.0,0.00027944,4]
[328664010,1717684240182,-500.0,0.00027944,4]
[328664011,1717684240192,-572.40756455,0.00027944,4]
[328664012,1717684240202,-114.92099686,0.00027944,4]
[328664013,1717684240216,-385.07900314,0.00027944,4]
[328664014,1717684240226,-1435.34,0.00027944,4]
[328664015,1717684240236,-730.6,0.00027944,4]
[328664016,1717684240246,-361.04660027,0.00027944,4]
[328664018,1717684240256,-500.0,0.00027944,4]
[328664019,1717684240267,-530.97069909,0.00027944,4]
[328664020,1717684240277,-81.60280968,0.00027944,4]
[328664021,1717684240290,-389.77115885,0.00027944,4]
[328664022,1717684240302,-28.62603147,0.00027944,4]
[328664023,1717684240313,-309.47670267,0.00027944,4]
[328664024,1717684240323,-380.75825087,0.00027944,4]
[328664025,1717684240334,-282.3847151,0.00027944,4]
[328664026,1717684240346,-217.6152849,0.00027944,4]
[328664027,1717684240357,-500.0,0.00027944,4]
[328664028,1717684240366,-500.0,0.00027944,4]
[328664029,1717684240378,-500.12,0.00027944,4]
[328664030,1717684240388,-500.0,0.00027944,4]
[328664031,1717684240399,-619.52,0.00027944,4]
[328664032,1717684240409,-500.0,0.00027944,4]
[328664033,1717684240419,-500.0,0.00027944,4]
[328664034,1717684240429,-526.60043023,0.00027944,4]
[328664035,1717684240439,-500.0,0.00027944,4]
[328664036,1717684240450,-337.35593511,0.00027944,4]
[328664037,1717684240460,-500.0,0.00027944,4]
[328664038,1717684240470,-500.0,0.00027944,4]
[328664039,1717684240480,-500.0,0.00027944,4]
[328664040,1717684240490,-500.0,0.00027944,4]
[328664041,1717684240500,-500.0,0.00027944,4]
[328664042,1717684240511,-500.0,0.00027944,4]
[328664043,1717684240521,-373.46404032,0.00027944,4]
[328664044,1717684240531,-500.0,0.00027944,4]
[328664045,1717684240542,-500.0,0.00027944,4]
[328664046,1717684240552,-500.0,0.00027944,4]
[328664047,1717684240562,-500.0,0.00027944,4]
[328664048,1717684240572,-500.0,0.00027944,4]
[328664049,1717684240582,-500.0,0.00027944,4]
[328664050,1717684240592,-500.0,0.00027944,4]
[328664051,1717684240602,-500.0,0.00027944,4]
[328664052,1717684240614,-500.0,0.00027944,4]
[328664053,1717684240624,-500.0,0.00027944,4]
[328664054,1717684240634,-575.36,0.00027944,4]
[328664055,1717684240644,-500.0,0.00027944,4]
[328664056,1717684240655,-500.0,0.00027944,4]
[328664057,1717684240665,-500.0,0.00027944,4]
[328664058,1717684240675,-500.0,0.00027944,4]
[328664059,1717684240685,-507.21,0.00027944,4]
[328664060,1717684240695,-174.55519447,0.00027944,4]
[328664061,1717684240706,-500.0,0.00027944,4]
[328664062,1717684240717,-500.0,0.00027944,4]
[328664063,1717684240727,-500.0,0.00027944,4]
[328664064,1717684240737,-154.34,0.00027944,4]
[328664065,1717684240747,-500.0,0.00027944,4]
[328664066,1717684240757,-500.0,0.00027944,4]
[328664067,1717684240769,-500.0,0.00027944,4]
[328664068,1717684240781,-500.0,0.00027944,4]
[328664069,1717684240793,-500.0,0.00027944,4]
[328664070,1717684240803,-500.0,0.00027944,4]
[328664071,1717684240812,-500.0,0.00027944,4]
[328664072,1717684240822,-500.0,0.00027944,4]
[328664073,1717684240832,-500.0,0.00027944,4]
[328664074,1717684240841,-500.0,0.00027944,4]
[328664075,1717684240851,-419.67066056,0.00027944,4]
[328664076,1717684241154,-80.32933944,0.00027944,4]
[328664077,1717684241164,-500.0,0.00027944,4]
[328664078,1717684241173,-45.5539927,0.00027944,4]
[328664079,1717684241409,-488.30149628,0.00027944,4]
[328664081,1717684241418,-164.87491924,0.00027944,4]
[328664082,1717684241430,-544.84508076,0.00027944,4]
[328664083,1717684241440,-500.0,0.00027944,4]
[328664084,1717684241449,-562.35763117,0.00027944,4]
[328664085,1717684241459,-500.0,0.00027944,4]
[328664086,1717684241468,-500.0,0.00027944,4]
[328664087,1717684241478,-500.0,0.00027944,4]
[328664088,1717684241488,-1315.69,0.00027944,4]
[328664089,1717684241497,-500.0,0.00027944,4]
[328664090,1717684241507,-500.0,0.00027944,4]
[328664091,1717684241517,-500.0,0.00027944,4]
[328664092,1717684241527,-500.0,0.00027944,4]
[328664093,1717684241536,-500.0,0.00027944,4]
[328664094,1717684241546,-952.09,0.00027944,4]
[328664095,1717684241555,-1134.97,0.00027944,4]
[328664096,1717684241565,-2774.47,0.00027944,4]
[328664097,1717684241575,-500.0,0.00027944,4]
[328664098,1717684241586,-500.0,0.00027944,4]
[328664099,1717684241595,-500.0,0.00027944,4]
[328664100,1717684241605,-2256.92,0.00027944,4]
[328664101,1717684241616,-528.02863973,0.00027944,4]
[328664102,1717684241625,-500.0,0.00027944,4]
[328664103,1717684241635,-585.88,0.00027944,4]
[328664104,1717684241645,-500.0,0.00027944,4]
[328664107,1717684241654,-826.08,0.00027944,4]
[328664109,1717684241664,-2236.94,0.00027944,4]
[328664110,1717684241675,-500.0,0.00027944,4]
[328664111,1717684241684,-180.34291665,0.00027944,4]
[328664112,1717684241694,-5281.43,0.00027944,4]
[328664113,1717684241704,-532.85148092,0.00027944,4]
[328664114,1717684241714,-1361.63,0.00027944,4]
[328664115,1717684241724,-500.0,0.00027944,4]
[328664116,1717684241734,-500.0,0.00027944,4]
[328664117,1717684241744,-500.0,0.00027944,4]
[328664118,1717684241753,-500.0,0.00027944,4]
[328664119,1717684241763,-500.0,0.00027944,4]
[328664120,1717684241776,-500.0,0.00027944,4]
[328664121,1717684241786,-580.25,0.00027944,4]
[328664122,1717684241795,-500.0,0.00027944,4]
[328664123,1717684241804,-500.0,0.00027944,4]
[328664124,1717684241815,-911.21,0.00027944,4]
[328664125,1717684241824,-666.1,0.00027944,4]
[328664126,1717684241835,-500.0,0.00027944,4]
[328664127,1717684241844,-500.0,0.00027944,4]
[328664128,1717684241853,-500.0,0.00027944,4]
[328664129,1717684241866,-2766.93,0.00027944,4]
[328664130,1717684241876,-500.0,0.00027944,4]
[328664131,1717684241886,-500.0,0.00027944,4]
[328664132,1717684241896,-654.11,0.00027944,4]
[328664133,1717684241907,-2418.52,0.00027944,4]
[328664134,1717684241916,-500.0,0.00027944,4]
[328664135,1717684241926,-500.0,0.00027944,4]
[328664136,1717684241936,-500.0,0.00027944,4]
[328664137,1717684241946,-500.0,0.00027944,4]
[328664138,1717684241957,-563.24099102,0.00027944,4]
[328664139,1717684241967,-500.0,0.00027944,4]
[328664140,1717684241976,-500.0,0.00027944,4]
[328664141,1717684241987,-500.0,0.00027944,4]
[328664142,1717684241996,-500.0,0.00027944,4]
[328664143,1717684242006,-1539.59,0.00027944,4]
[328664144,1717684242016,-500.0,0.00027944,4]
[328664145,1717684242026,-1255.3,0.00027944,4]
[328664146,1717684242035,-500.0,0.00027944,4]
[328664147,1717684242045,-500.0,0.00027944,4]
[328664148,1717684242055,-391.12770173,0.00027944,4]
[328664149,1717684242064,-556.32121547,0.00027944,4]
[328664150,1717684242074,-500.0,0.00027944,4]
[328664151,1717684242083,-500.0,0.00027944,4]
[328664152,1717684242093,-500.0,0.00027944,4]
[328664153,1717684242102,-2108.4,0.00027944,4]
[328664154,1717684242113,-500.0,0.00027944,4]
[328664155,1717684242123,-500.0,0.00027944,4]
[328664156,1717684242134,-513.14,0.00027944,4]
[328664157,1717684242144,-500.0,0.00027944,4]
[328664158,1717684242153,-500.0,0.00027944,4]
[328664159,1717684242163,-437.24983363,0.00027944,4]
[328664160,1717684242173,-500.0,0.00027944,4]
[328664161,1717684242183,-500.0,0.00027944,4]
[328664162,1717684242192,-1285.34,0.00027944,4]
[328664163,1717684242202,-500.0,0.00027944,4]
[328664164,1717684242212,-500.0,0.00027944,4]
[328664165,1717684242221,-500.0,0.00027944,4]
[328664166,1717684242231,-500.0,0.00027944,4]
[328664167,1717684242241,-500.0,0.00027944,4]
[328664168,1717684242250,-500.0,0.00027944,4]
[328664169,1717684242259,-1334.22,0.00027944,4]
[328664170,1717684242269,-500.0,0.00027944,4]
[328664171,1717684242279,-500.0,0.00027944,4]
[328664172,1717684242288,-1021.38,0.00027944,4]
[328664173,1717684242299,-3029.84,0.00027944,4]
[328664174,1717684242308,-500.0,0.00027944,4]
[328664175,1717684242318,-500.0,0.00027944,4]
[328664176,1717684242327,-2065.71,0.00027944,4]
[328664177,1717684242337,-500.0,0.00027944,4]
[328664178,1717684242346,-500.0,0.00027944,4]
[328664179,1717684242355,-500.0,0.00027944,4]
[328664180,1717684242366,-561.11,0.00027944,4]
[328664181,1717684242376,-500.0,0.00027944,4]
[328664182,1717684242386,-500.0,0.00027944,4]
[328664183,1717684242395,-500.0,0.00027944,4]
[328664184,1717684242404,-494.51195542,0.00027944,4]
[328664185,1717684242418,-5.48804458,0.00027944,4]
[328664186,1717684242428,-500.0,0.00027944,4]
[328664187,1717684242438,-2539.25,0.00027944,4]
[328664188,1717684242447,-831.61,0.00027944,4]
[328664189,1717684242457,-859.07,0.00027944,4]
[328664190,1717684242467,-117.18315542,0.00027944,4]
[328664191,1717684242479,-382.81684458,0.00027944,4]
[328664192,1717684242488,-500.0,0.00027944,4]
[328664193,1717684242497,-500.0,0.00027944,4]
[328664194,1717684242507,-816.38,0.00027944,4]
[328664195,1717684242516,-500.0,0.00027944,4]
[328664196,1717684242526,-500.0,0.00027944,4]
[328664197,1717684242535,-1242.44,0.00027944,4]
[328664198,1717684242544,-1933.46,0.00027944,4]
[328664199,1717684242554,-968.99,0.00027944,4]
[328664200,1717684242563,-500.0,0.00027944,4]
[328664201,1717684242573,-560.98,0.00027944,4]
[328664202,1717684242583,-518.43,0.00027944,4]
[328664203,1717684242593,-500.0,0.00027944,4]
[328664204,1717684242603,-813.21,0.00027944,4]
[328664205,1717684242613,-500.0,0.00027944,4]
[328664206,1717684242623,-500.0,0.00027944,4]
[328664207,1717684242633,-500.0,0.00027944,4]
[328664208,1717684242643,-250.0,0.00027944,4]
[328664209,1717684242653,-500.0,0.00027944,4]
[328664210,1717684242663,-500.0,0.00027944,4]
[328664211,1717684242673,-563.87,0.00027944,4]
[328664212,1717684242683,-516.57,0.00027944,4]
[328664213,1717684242693,-648.12,0.00027944,4]
[328664214,1717684242704,-500.0,0.00027944,4]
[328664215,1717684242714,-18.1308521,0.00027944,2]
[328664216,1717684242728,-481.8691479,0.00027944,2]
[328664217,1717684242738,-373.93724541,0.00027944,4]
[328664218,1717684242751,-126.06275459,0.00027944,4]
[328664219,1717684242762,-500.0,0.00027944,4]
[328664220,1717684242778,-500.0,0.00027944,4]
[328664221,1717684242788,-500.0,0.00027944,4]
[328664222,1717684242798,-500.0,0.00027944,4]
[328664223,1717684242809,-1267.63,0.00027944,4]
[328664224,1717684242819,-500.0,0.00027944,4]
[328664225,1717684242830,-500.0,0.00027944,4]
[328664226,1717684242840,-500.0,0.00027944,4]
[328664227,1717684242851,-512.84,0.00027944,4]
[328664228,1717684242863,-1896.79,0.00027944,4]
[328664229,1717684242873,-500.0,0.00027944,4]
[328664230,1717684242883,-1555.0,0.00027944,4]
[328664231,1717684242893,-570.04337363,0.00027944,4]
[328664232,1717684242903,-824.64,0.00027944,4]
[328664233,1717684242913,-638.6,0.00027944,4]
[328664234,1717684242924,-500.0,0.00027944,4]
[328664235,1717684242934,-1759.69,0.00027944,4]
[328664236,1717684242944,-500.0,0.00027944,4]
[328664237,1717684242955,-500.0,0.00027944,4]
[328664238,1717684242966,-500.0,0.00027944,4]
[328664239,1717684242976,-500.0,0.00027944,4]
[328664240,1717684242986,-500.0,0.00027944,4]
[328664241,1717684242996,-500.0,0.00027944,4]
[328664242,1717684243006,-2463.73,0.00027944,4]
[328664243,1717684243016,-634.91,0.00027944,4]
[328664244,1717684243026,-500.0,0.00027944,4]
[328664245,1717684243036,-921.39,0.00027944,4]
[328664246,1717684243046,-500.0,0.00027944,4]
[328664247,1717684243056,-500.0,0.00027944,4]
[328664248,1717684243065,-500.0,0.00027944,4]
[328664249,1717684243075,-500.0,0.00027944,4]
[328664250,1717684243085,-2196.78,0.00027944,4]
[328664251,1717684243095,-5905.36,0.00027944,4]
[328664252,1717684243104,-500.0,0.00027944,4]